Cogmind - Beta 11.2 @@@ ROGUE MODE // 2023.01.20 @ 23:30:27 Player: Red Box Result: Self-destructed Performance ------------- Evolutions (2) 1000 Regions Visited (5) 1000 Robots Destroyed (30) 150 Value Destroyed (858) 858 Prototype IDs (29) 580 Alien Tech Used (0) 0 Bonus (127) 127 TOTAL SCORE: 3715 Bonus ------- Aligned with FarCom 300 Friendly Fire -173 Cogmind --------- Core Integrity 483/550 Matter 239/300 Energy 108/265 System Corruption 5% Temperature Hot (216) Movement Rolling (110) Ox2 Location -8/Materials Parts ------- > --- POWER (1) -------- Improved Ion Engine > --- PROPULSION (2) --- Wheel Wheel > --- UTILITY (5) ------ Improved Heat Sink High-capacity Storage Unit Advanced Targeting Computer Light Armor Plating > --- WEAPON (3) ------- Improved Medium Laser Field Laser Heavy Particle Gun > --- INVENTORY (20) --- Light Angular Momentum Engine Wheel Wheel Wheel Compact Wheel Compact Wheel Improved Heat Sink Advanced Visual Processing Unit Particle Charger Heavy Armor Plating Medium Reactive Plating Arc Projector Beamcaster Plasma Cannon Firepult Light Cannon Heavy Rocket Launcher Mining Laser Peak State ------------ > --- POWER ------------ Ion Engine > --- PROPULSION ------- Wheel Wheel > --- UTILITY ---------- Improved Heat Sink Improved Heat Sink High-capacity Storage Unit Particle Charger Light Armor Plating > --- WEAPON ----------- Particle Gun Heavy Particle Gun Beamcaster > --- INVENTORY -------- Light Angular Momentum Engine Wheel Wheel Wheel Compact Wheel Compact Wheel Improved Terrain Scanner Heavy Armor Plating Medium Reactive Plating EM Pulse Gun EM Pulse Gun Arc Projector Beam Cannon Plasma Cannon Firepult Light Cannon Heavy Rocket Launcher Mining Laser [Rating: 31] Favorites ----------- Power Ion Engine Engine Ion Engine Propulsion Aluminum Leg Leg Aluminum Leg Wheel Wheel Utility Improved Heat Sink Device Improved Heat Sink Storage Large Storage Unit Processor Advanced Targeting Computer Protection Light Armor Plating Weapon Particle Gun Energy Gun Particle Gun Energy Cannon Beam Cannon Ballistic Gun Assault Rifle Launcher Grenade Launcher Special Weapon Mining Laser Special Melee Weapon Datajack Build | -11 -10 -10 -10 -9 -8 ------- Run | Scr Mat Min Exi Min Mat Slots Evolved 4 | . . . . . 4 Power . | . . . . . . Propulsion . | . . . . . . Utility 3 | . . . . . 3 Weapon 1 | . . . . . 1 Parts Attached 40 | 7 12 4 . . 17 Power 4 | 1 1 1 . . 1 Engine 4 | 1 1 1 . . 1 Core . | . . . . . . Reactor . | . . . . . . Propulsion 4 | 2 . 2 . . . Treads . | . . . . . . Leg 2 | 2 . . . . . Wheel 2 | . . 2 . . . Hover . | . . . . . . Flight . | . . . . . . Utility 15 | 2 4 1 . . 8 Device 8 | 1 2 . . . 5 Storage 4 | 1 2 1 . . . Processor 1 | . . . . . 1 Hackware . | . . . . . . Protection 2 | . . . . . 2 Artifact . | . . . . . . Weapon 17 | 2 7 . . . 8 Energy Gun 9 | . 3 . . . 6 Energy Cannon 2 | . 1 . . . 1 Ballistic Gun 3 | 2 1 . . . . Ballistic Cannon . | . . . . . . Launcher 1 | . 1 . . . . Special Weapon 1 | . . . . . 1 Impact Weapon . | . . . . . . Slashing Weapon . | . . . . . . Piercing Weapon . | . . . . . . Special Melee Weapon 1 | . 1 . . . . Unidentified Prototypes 1 | . . . . . 1 Parts Lost 4 | . . 1 . . 3 Power 2 | . . 1 . . 1 Propulsion . | . . . . . . Utility 2 | . . . . . 2 Weapon . | . . . . . . Highest Loss Streak 1 | . . 1 . . 1 To Critical Strikes . | . . . . . . Average Slot Usage (%) 99 | . 99 100 100 100 94 Engine 13 | . 14 14 14 14 8 Leg 15 | . 28 14 . . . Wheel 11 | . . 13 28 28 18 Device 14 | . 13 14 14 14 18 Storage 13 | . 14 14 14 14 9 Protection 1 | . . . . . 8 Energy Gun 17 | . 20 14 14 14 22 Energy Cannon 7 | . 2 14 14 14 3 Ballistic Gun 1 | . 3 . . . . Naked Turns . | . . . . . . Heaviest Build 64 | 12 32 52 52 52 64 Greatest Support 20 | 20 20 20 20 20 20 Greatest Overweight (x) 3 | 3 1 2 2 2 3 Average Overweight (x) 1 | . . 1 2 2 2 Largest Inventory Capacity 20 | 8 15 20 20 20 20 Average Capacity 16 | 7 13 17 20 20 20 Most Carried 20 | 7 15 20 20 20 20 Average Carried 15 | 4 12 16 19 19 19 Final Capacity 20 | 8 15 20 20 20 20 Final Carried 20 | 7 15 20 20 20 20 Class Distribution -------------------- 55% | Mutant 25% | Scavenger-Mutant 10% | Scavenger-Skirmisher 6% | Commander-Mutant Dominant Class ---------------- Mutant | -10/Materials Mutant | -10/Mines Scavenger-Mutant | -10/Exiles Commander-Mutant | -9/Mines Scavenger-Skirmisher | -8/Materials Resources | -11 -10 -10 -10 -9 -8 ----------- Run | Scr Mat Min Exi Min Mat Matter Collected 843 | 259 390 41 . . 153 Remotely . | . . . . . . Salvage Created 1219 | 13 390 82 . 206 528 Parts 69 | 4 26 3 . 8 28 Haulers Intercepted 1 | . 1 . . . . Recyclers Shooed 1 | . . . . . 1 Parts Field Recycled . | . . . . . . Retrieved Matter . | . . . . . . Parts Self-Destructed . | . . . . . . Prevented . | . . . . . . Kills | -11 -10 -10 -10 -9 -8 ------- Run | Scr Mat Min Exi Min Mat Combat Hostiles Destroyed 26 | . 8 6 . 3 9 Guns 16 | . 6 1 . 2 7 Cannons 7 | . . 5 . 1 1 AOE 2 | . 2 . . . . Classes Destroyed 10 | 1 4 1 . . 4 Tunneler 1 | 1 . . . . . Hauler 1 | . 1 . . . . Operator 1 | . . . . . 1 Watcher 5 | . 3 . . . 2 Swarmer 4 | . 3 1 . . . Grunt 14 | . 5 . . 3 6 Brawler 1 | . . . . . 1 Duelist 1 | . . . . . 1 Sentry 1 | . . . . . 1 Assembled 5 | . . 5 . . . Thug 1 | . . . . 1 . Best Kill Streak 5 | 1 5 2 . 2 3 Combat Bots Only 3 | . 3 2 . 2 3 Max Kills in Single Turn 2 | 1 2 1 . 2 2 Gunslinging . | . . . . . . Exploded 2 | . 2 . . . . Melee . | . . . . . . Uniques/NPCs Destroyed . | . . . . . . Combat | -11 -10 -10 -10 -9 -8 -------- Run | Scr Mat Min Exi Min Mat Damage Taken 916 | . 321 276 . 33 286 Core 235 | . 77 68 . 23 67 Absorbed by Shields . | . . . . . . Regen/Repaired (Parts) 25 | . 25 . . . . Core Remaining (%) 66 | 100 . . . 32 . Volleys Fired 101 | 3 37 23 . 6 32 Largest 3 | 2 2 2 . 2 3 Hottest 200 | 40 125 125 . 125 200 Shots Fired 221 | 6 74 46 . 12 83 Gun 169 | 6 71 23 . 6 63 Cannon 48 | . 2 23 . 6 17 Launcher 1 | . 1 . . . . Special 3 | . . . . . 3 Kinetic 51 | 6 45 . . . . Thermal 169 | . 28 46 . 12 83 Explosive 1 | . 1 . . . . Electromagnetic . | . . . . . . Robot Hit Streak 9 | 5 9 5 . 5 8 Robot Miss Streak 6 | . 3 6 . 2 5 Penetration Max . | . . . . . . Secondary Targets 1 | . 1 . . . . Max Gunslinging Chain 1 | . 1 . . . . Shots Hit Robots 121 | 5 48 19 . 8 41 Core Hits 59 | 1 23 8 . 4 23 Critical Kills 1 | . . . . . 1 Critical Parts Destroyed 1 | . 1 . . . . Critical Strikes 4 | . 1 . . . 3 Burn 2 | . . . . . 2 Meltdown 1 | . . . . . 1 Destroy 1 | . 1 . . . . Melee Attacks . | . . . . . . Impact . | . . . . . . Slashing . | . . . . . . Piercing . | . . . . . . Sneak Attacks . | . . . . . . Combat Hostiles . | . . . . . . Follow-up Attacks . | . . . . . . Damage Inflicted 2089 | 55 674 320 . 179 861 Guns 1563 | 55 547 144 . 87 730 Cannons 410 | . 18 176 . 92 124 Explosions 107 | . 107 . . . . Melee . | . . . . . . Ramming 9 | . 2 . . . 7 Kinetic 383 | 55 328 . . . . Thermal 1590 | . 237 320 . 179 854 Explosive 107 | . 107 . . . . Electromagnetic . | . . . . . . Impact . | . . . . . . Slashing . | . . . . . . Piercing . | . . . . . . Highest Corruption 5 | . . . . . 5 Average Corruption 5 | . . . . . 5 Corruption Purged . | . . . . . . Corruption Blocked . | . . . . . . Effects 12 | . . . . . 12 Message Errors 4 | . . . . . 4 Matter Fused 3 | . . . . . 3 Energy Discharges 2 | . . . . . 2 Parts Rejected 1 | . . . . . 1 Misfires 1 | . . . . . 1 Alerts 1 | . . . . . 1 Overload Shots . | . . . . . . Overflow Damage 22 | . . 22 . . . Projectiles 22 | . . 22 . . . Explosions . | . . . . . . Melee . | . . . . . . Knockbacks . | . . . . . . Impact . | . . . . . . Kinetic . | . . . . . . Secondary . | . . . . . . Self-Inflicted Damage 3 | . . . . . 3 Shots . | . . . . . . Rammed 1 | . . . . . 1 Targets Rammed 2 | . 1 . . . 1 Kicked 1 | . 1 . . . . Crushed . | . . . . . . Highest Temperature 523 | . 27 186 . 69 523 Average Temperature 79 | . 9 83 . 32 129 Received Heat Transfer 399 | . 186 60 . 18 135 Effects 3 | . . . . . 3 Energy Bleed 1 | . . . . . 1 Matter Decay 1 | . . . . . 1 Damage (minor) 1 | . . . . . 1 Siege Activations . | . . . . . . Robots Corrupted . | . . . . . . Combat Hostiles . | . . . . . . Parts Fried . | . . . . . . Impact Corruptions . | . . . . . . Robots Melted 1 | . . . . . 1 Combat Hostiles 1 | . . . . . 1 Parts Melted 11 | . . . . 3 8 Heat Transferred 3432 | . 509 703 . 370 1850 Parts Sabotaged . | . . . . . . Parts Stolen . | . . . . . . Parts Stripped . | . . . . . . Power Chain Reactions . | . . . . . . Missiles Intercepted . | . . . . . . Alert | -11 -10 -10 -10 -9 -8 ------- Run | Scr Mat Min Exi Min Mat Peak Influence 255 | 5 255 40 . 70 190 Initial 23 | . 3 12 . . 23 Average 46 | 1 57 8 . 17 105 Maximum Alert Level 1 | . 1 . . . . Low Security (%) 95 | 100 90 100 . 100 100 Level 1 4 | . 9 . . . . Level 2 . | . . . . . . Level 3 . | . . . . . . Level 4 . | . . . . . . Level 5 . | . . . . . . High Security . | . . . . . . Max Security . | . . . . . . Squads Dispatched 2 | . . . . 1 1 Investigation 1 | . . . . 1 . Extermination . | . . . . . . Reinforcement 1 | . . . . . 1 Assault . | . . . . . . Garrison . | . . . . . . Intercept . | . . . . . . Searches Triggered . | . . . . . . Construction Impeded 1 | . . . . . 1 Haulers Reinforced . | . . . . . . Active Scanning Responses . | . . . . . . Cargo Convoy Interrupts . | . . . . . . Stealth | -11 -10 -10 -10 -9 -8 --------- Run | Scr Mat Min Exi Min Mat Distress Signals 4 | . 2 . . . 2 Communications Jammed . | . . . . . . Distress Signals . | . . . . . . Times Spotted 49 | . 20 9 . 3 17 Peak Tracking Total 6 | . 4 2 . 3 6 Tactical Retreats 2 | . . 1 . . 1 Traps | -11 -10 -10 -10 -9 -8 ------- Run | Scr Mat Min Exi Min Mat Traps Triggered . | . . . . . . Indirectly . | . . . . . . Trap Hack Attempts 43 | . 43 . . . . Triggered . | . . . . . . Disarmed 1 | . 1 . . . . Reprogrammed 5 | . 5 . . . . Reused . | . . . . . . Traps Extracted . | . . . . . . Installed . | . . . . . . Triggered . | . . . . . . Machines | -11 -10 -10 -10 -9 -8 ---------- Run | Scr Mat Min Exi Min Mat Machines Disabled . | . . . . . . Max in Single Turn . | . . . . . . Machines Sabotaged . | . . . . . . Garrisons Compromised . | . . . . . . Overloaded Fab Kills . | . . . . . . Hacking | -11 -10 -10 -10 -9 -8 --------- Run | Scr Mat Min Exi Min Mat Machines Accessed 17 | . 11 . 2 2 2 Terminals 11 | . 8 . . 1 2 Fabricators . | . . . . . . Repair Stations 1 | . 1 . . . . Recycling Units 2 | . 2 . . . . Scanalyzers . | . . . . . . Garrison Access . | . . . . . . Total Hacks 51 | . 40 . 2 4 5 Successful 30 | . 21 . 2 3 4 Failed 19 | . 18 . . . 1 Catastrophic . | . . . . . . Database Lockouts 2 | . 1 . . 1 . Manual 33 | . 25 . 1 3 4 Terminals 39 | . 31 . . 3 5 Fabricators . | . . . . . . Repair Stations 2 | . 2 . . . . Recycling Units 7 | . 7 . . . . Scanalyzers . | . . . . . . Garrison Access . | . . . . . . Terminal Hacks 15 | . 9 . 2 3 1 Record 1 | . . . 1 . . Part Schematic 2 | . . . . 2 . Robot Analysis 3 | . 3 . . . . Prototype ID Bank 4 | . 4 . . . . Open Door 1 | . . . . 1 . Terminal Index 2 | . 1 . . . 1 Hauler Manifests 1 | . 1 . . . . EX-Prototype ID Bank 1 | . . . 1 . . Fabricator Hacks . | . . . . . . Repair Station Hacks 2 | . 2 . . . . Scan Component 1 | . 1 . . . . Repair 1 | . 1 . . . . Recycling Unit Hacks 1 | . 1 . . . . Retrieve Components 1 | . 1 . . . . Scanalyzer . | . . . . . . Garrison Access Hacks . | . . . . . . Unauthorized Hacks 12 | . 9 . . . 3 Terminals 10 | . 7 . . . 3 Track 2 | . 2 . . . . Assimilate 5 | . 3 . . . 2 Botnet 1 | . 1 . . . . Disrupt 1 | . . . . . 1 Operators 1 | . 1 . . . . Fabricators . | . . . . . . Repair Stations . | . . . . . . Recycling Units 2 | . 2 . . . . Reject 2 | . 2 . . . . Scanalyzers . | . . . . . . Garrison Access . | . . . . . . Data Cores Recovered . | . . . . . . Used . | . . . . . . Hacking Detections 14 | . 11 . . 1 2 Full Trace Events . | . . . . . . Feedback Events . | . . . . . . Feedback Blocked . | . . . . . . Robot Schematics Acquired . | . . . . . . Robots Built . | . . . . . . Authchips . | . . . . . . Time . | . . . . . . Total Robot Build Rating . | . . . . . . Part Schematics Acquired 2 | . . . . 2 . Parts Built . | . . . . . . Authchips . | . . . . . . Time . | . . . . . . Total Part Build Rating . | . . . . . . Parts Repaired 1 | . 1 . . . . Time 19 | . 19 . . . . Parts Recycled . | . . . . . . Recycled Matter . | . . . . . . Retrieved Matter . | . . . . . . Retrieved Components 3 | . 3 . . . . Parts Scanalyzed . | . . . . . . Part Schematics Acquired . | . . . . . . Parts Damaged . | . . . . . . Bothacking | -11 -10 -10 -10 -9 -8 ------------ Run | Scr Mat Min Exi Min Mat Used RIF Installer . | . . . . . . Robots Hacked . | . . . . . . Non-combat . | . . . . . . Combat . | . . . . . . Robot Hacks Applied . | . . . . . . Relay Couplers Released . | . . . . . . Fabnet Peak Effective % . | . . . . . . Robots Rewired . | . . . . . . Allies Hacked . | . . . . . . Hacks Repelled . | . . . . . . Allies | -11 -10 -10 -10 -9 -8 -------- Run | Scr Mat Min Exi Min Mat Total Allies 8 | . 2 2 . 3 1 Largest Group 5 | . 2 4 2 5 1 Highest-Rated Group 61 | . 20 61 20 60 9 Highest-Rated Ally 31 | . 10 31 10 16 9 Total Orders 6 | . 2 3 . . 1 STAY 4 | . 1 2 . . 1 FOLLOW 2 | . 1 1 . . . Ally Attacks 24 | . . 11 . 13 . Total Damage 310 | . . 146 . 164 . Kills 6 | . . 3 . 3 . Allies Corrupted 1 | . . . . 1 . Allies Melted . | . . . . . . Intel | -11 -10 -10 -10 -9 -8 ------- Run | Scr Mat Min Exi Min Mat Robot Analysis Total 3 | . 3 . . . . Derelict Logs Recovered 2 | . . 1 . 1 . Drone Launches . | . . . . . . Drone Recoveries . | . . . . . . Exploration | -11 -10 -10 -10 -9 -8 ------------- Run | Scr Mat Min Exi Min Mat Turns Passed 4658 | 107 1973 988 521 490 579 Spaces Moved 2853 | 54 950 611 471 396 371 Core 20 | 20 . . . . . Treads . | . . . . . . Legs 1193 | 34 950 209 . . . Wheels 1640 | . . 402 471 396 371 Hover . | . . . . . . Flight . | . . . . . . Fastest Speed 50 | 50 120 95 110 110 110 Average Speed 138 | 140 174 136 110 110 117 Slowest Speed 200 | 200 190 190 110 110 125 Overloaded Moves . | . . . . . . Propulsion Burnouts . | . . . . . . Robots Hopped . | . . . . . . Cave-ins Triggered . | . . . . . . Exploration Rate (%) 62 | 5 98 89 69 92 24 Regions Visited 5 Branch Regions 3 Pre-discovered Areas 2 | . . 1 1 . . Known Exits Taken . | . . . . . . Unknown Exits Taken 5 | 1 1 1 1 1 . Scrap Searched 2 | . . 1 . 1 . Spaces Dug 6 | . . . . . 6 Terrain Destroyed 19 | . 11 . . . 8 Melee . | . . . . . . Projectile 8 | . . . . . 8 AOE 11 | . 11 . . . . Terrain Rammed . | . . . . . . Walls Destroyed . | . . . . . . Machines Disabled . | . . . . . . Actions | -11 -10 -10 -10 -9 -8 --------- Run | Scr Mat Min Exi Min Mat Total 3352 | 76 1199 722 475 441 439 Wait 245 | 6 133 73 . 28 5 Move 2848 | 53 949 610 470 395 371 Hop . | . . . . . . Pick Up 46 | 7 16 9 2 6 6 Fast Attach 15 | 7 1 . . . 7 Attach 9 | . 2 3 . . 4 Detach 1 | . . . . . 1 Swap 16 | . 9 1 . . 6 Drop 26 | . 8 3 3 6 6 Fire 101 | 3 37 23 . 6 32 Melee . | . . . . . . Ram 1 | . . . . . 1 Kick 1 | . 1 . . . . Crush . | . . . . . . Escape Stasis . | . . . . . . Rewire . | . . . . . . Trap 43 | . 43 . . . . Miscellaneous . | . . . . . . Route ------- -11/Scrapyard -10/Materials (discovered 3 exits: [*Mat x2] / [*Min]) -10/Mines (discovered 3 exits: [*Mat x2] / *Exi) -10/Exiles -9/Mines -8/Materials History --------- Turn | Location | Event 42 | -11/Scrapyard | Discovered new exit (range 15) 108 | -11/Scrapyard | Entered Materials 219 | -10/Materials | Discovered new exit (range 13) 222 | -10/Materials | Discovered new exit (range 13) 307 | -10/Materials | Build established: Mutant 1238 | -10/Materials | Discovered new exit (range 15) 1544 | -10/Materials | Central database locked down 2040 | -10/Materials | Repaired Imp. Heat Sink 2081 | -10/Materials | Entered Mines 2081 | -10/Mines | Accompanied by 2 allies 2112 | -10/Mines | Deemed a non-threat by the Exiles lab entrance 2114 | -10/Mines | Discovered new exit (range 5) 2120 | -10/Mines | Met a Derelict bent on vengeance 2295 | -10/Mines | Discovered new exit (range 15) 2297 | -10/Mines | Discovered new exit (range 10) 2479 | -10/Mines | Assembled infested the area 2781 | -10/Mines | Core integrity fell below 50% 2799 | -10/Mines | Learned location of Mines (-9) 2875 | -10/Mines | Build established: Scavenger-Mutant 3069 | -10/Mines | Entered Exiles 3069 | -10/Exiles | Accompanied by 2 allies 3097 | -10/Exiles | Met 8R-AWN 3116 | -10/Exiles | Met EX-HEX 3145 | -10/Exiles | Met EX-BIN 3205 | -10/Exiles | Met EX-DEC 3209 | -10/Exiles | Learned location of Zion (-6) 3441 | -10/Exiles | Aligned with FarCom system 3442 | -10/Exiles | Given EX-Vault access code 3467 | -10/Exiles | Opened EX-Vault 3477 | -10/Exiles | Found Firepult 3500 | -10/Exiles | Warned to stay clear of 0b10 Research branches 3576 | -10/Exiles | Discovered new exit (range 14) 3590 | -10/Exiles | Left Exiles lab with Firepult 3590 | -10/Exiles | Entered Mines 3590 | -9/Mines | Accompanied by 2 allies 3600 | -9/Mines | Assisted by bots powering up and referring to "LRC-V3" 3615 | -9/Mines | Learned location of 1 exit from Proximity Caves 3702 | -9/Mines | Central database locked down 3845 | -9/Mines | Met a Derelict shopkeep closing up shop 3899 | -9/Mines | Build established: Commander-Mutant 3994 | -9/Mines | Excavation squad dispatched 3994 | -9/Mines | A large section of the Mines collapsed 4058 | -9/Mines | Discovered new exit (range 16) 4080 | -9/Mines | Entered Materials 4080 | -8/Materials | Accompanied by 1 ally 4080 | -8/Materials | Evolved 4 slots: Utility x3, Weapon x1 4391 | -8/Materials | Build established: Scavenger-Skirmisher 4659 | -8/Materials | Self-destructed Last Messages --------------- 04626_ Beam Rifle melted. 04626_ Y-45 Defender destroyed. 04628_ R-06 Scavenger collects Hacking Suite. 04630_ R-06 Scavenger collects Hover Unit. 04631_ Acquired 44 matter. 04632_ R-06 Scavenger collects Melee Analysis Suite. 04635_ Acquired Imp. Ion Engine. 04635_ R-06 Scavenger collects Hover Unit. 04635_ R-06 Scavenger collects Lgt. Ion Engine. 04637_ Slammed into U-05 Engineer. 04638_ ALERT: Construction progress impeded, dispatching reinforcements to local area. 04638_ R-06 Scavenger collects Hvy. Assault Rifle. 04640_ R-06 Scavenger collects Lgt. Armor Plating. 04640_ U-05 Engineer builds a Wall. 04645_ R-06 Scavenger collects Lgt. Treads. 04649_ System corrupted: Energy discharge (-70). 04649_ G-47 Trooper destroyed. 04653_ K-01 Serf collects debris. 04655_ Critical hit (Burn: +37). Map ----- +----------------------------------------------------+ | ?????????????????????????????????????????????????? | | ?????????????????????????????????????????????????? | | #######??????????????????????????????????????????? | | ] ###########????????????????????????????????? | | ## #????????????????????????????????? | | ## """" #????????????????????????????????? | | ####+### """" #????????????????????????????????? | | ## # """" #????????????????????????????????? | | # #????????????????????????????????? | | T + """" [ #????????????????????????????????? | | # """"[ #????????????????????????????????? | | ## # """" #????????????????????????????????? | | ### ## #????????????????????????????????? | | # ###########????????????????????????????????? | | # # =[[ #????????????????????????????????? | | + #= =[! #????????????????????????????????? | | # # = #????????????????????????????????? | | # # []! ##???????????????????????????????? | | # ###+#+###+"#???????????????????????????????? | | !# ##############???????????????????? | | # ####%=# o % #???????????????????? | | # #?#####"" """ #?####??????????????? | | ### ###### #?????#"T """ # #??????????????? | | ??# #????# #?????#"" """ + ?????????????????? | | ??# ######+###???# u""" #???????????????????? | | ??# # #???# @ #???????????????????? | | ??# # #???# = #???????????????????? | | ### # #???# *g[#???????????????????? | | # # #???#########+#???????????????????? | | + + ##########??? w??????????????????? | | # # + ?????????????????? | | # # ##########?????#+#????????????????? | | # # #?????????????????????????????????? | | ##### #?????????????????????????????????? | | #???##########?????????????????????????????????? | | #??????????????????????????????????????????????? | | ###??????????????????????????????????????????????? | | ?????????????????????????????????????????????????? | | | | | | | | | | | | | | | | | | | | | | | | | +----------------------------------------------------+ Best States ------------- Heat Dissipation 59 Energy Generation 12 Energy Capacity 265 Matter Stores 300 Matter Capacity 300 Sight Range 16 Terrain Scan Range 16 Terrain Scan Density 10 Armor Coverage 150 Evasion (%) 55 Targeting Accuracy 8 Particle Charging 15 Item Schematics ----------------- Hcp. Battery | -9/Mines | Hacked Hcp. Matter Pod | -9/Mines | Hacked Robot Schematics ------------------ None Fabricated ------------ Nothing Alien Tech Used ----------------- None Achievements -------------- None Challenges ------------ None Game ------ Seed ShieldVisualBeamcaster Manual? 0 Play Time 00:34:01 Cumulative 351.9 hours Start 2023.01.20 @ 22:52:56 End 2023.01.20 @ 23:30:27 Sessions 1 Manual Loads 0 Difficulty Rogue Special Mode None Game No. 289 Rogue 289 Adventurer 0 Explorer 0 Win Type - Total 0 Types 0/0/0/0/0/0/0/0/0 Lore% 57 Gallery% 62 Achievement% 46 Wizard Run 0 Options --------- ASCII 0 Keyboard 0 Movement Mouse Keybinds 0 Fullscreen 1 Font 16/SmallcapsGlow Map View 75x55 Tactical HUD 1 Map Filters NONE Filters NONE Steam 1 RUN: 9c07fb01-00e8-4a4f-a97a-a6bfb9c98bf1